fUST/lending_fUST_20250305
["ID","MTS","AMOUNT","RATE_DAILY","PERIOD"]
[355465039,1741188649235,-500.0,0.00039178,9]
[355465041,1741188649246,-500.0,0.00039178,9]
[355465043,1741188649256,-500.0,0.00039178,9]
[355465045,1741188649267,-500.0,0.00039178,9]
[355465047,1741188649277,-500.0,0.00039178,9]
[355465049,1741188649287,-100454.23,0.00039178,7]
[355465051,1741188649297,-665.32,0.00039178,9]
[355465053,1741188649307,-500.0,0.00039178,9]
[355465055,1741188649317,-616.53,0.00039178,9]
[355465057,1741188649327,-500.0,0.00039178,9]
[355465059,1741188649337,-500.0,0.00039178,9]
[355465061,1741188649346,-500.0,0.00039178,9]
[355465063,1741188649358,-500.0,0.00039178,9]
[355465065,1741188649368,-675.77,0.00039178,9]
[355465067,1741188649382,-1004.06,0.00039178,9]
[355465069,1741188649392,-4335.7,0.00039178,9]
[355465071,1741188649402,-500.0,0.00039178,9]
[355465073,1741188649412,-500.0,0.00039178,9]
[355465075,1741188649423,-500.0,0.00039178,9]
[355465077,1741188649433,-500.0,0.00039178,9]
[355465079,1741188649447,-500.0,0.00039178,9]
[355465081,1741188649459,-500.0,0.00039178,9]
[355465083,1741188649470,-500.0,0.00039178,9]
[355465085,1741188649481,-867.01,0.00039178,9]
[355465087,1741188649491,-500.0,0.00039178,9]
[355465089,1741188649501,-500.0,0.00039178,9]
[355465091,1741188649511,-808.48,0.00039178,9]
[355465093,1741188649522,-590.96,0.00039178,9]
[355465095,1741188649532,-500.0,0.00039178,9]
[355465097,1741188649542,-4920.31,0.00039178,9]
[355465100,1741188649552,-500.0,0.00039178,9]
[355465101,1741188649562,-500.0,0.00039178,9]
[355465104,1741188649572,-500.0,0.00039178,9]
[355465106,1741188649581,-500.0,0.00039178,9]
[355465108,1741188649591,-4494.19,0.00039178,9]
[355465110,1741188649601,-500.0,0.00039178,9]
[355465112,1741188649611,-1937.85,0.00039178,9]
[355465114,1741188649621,-1192.8,0.00039178,9]
[355465116,1741188649631,-503.75,0.00039178,9]
[355465118,1741188649641,-500.0,0.00039178,9]
[355465120,1741188649651,-668.28,0.00039178,9]
[355465122,1741188649661,-500.0,0.00039178,9]
[355465124,1741188649671,-6571.77,0.00039178,9]
[355465126,1741188649682,-500.0,0.00039178,9]
[355465128,1741188649692,-1308.15,0.00039178,9]
[355465130,1741188649708,-786.47,0.00039178,9]
[355465132,1741188649719,-15574.4,0.00039178,9]
[355465134,1741188649729,-500.0,0.00039178,9]
[355465136,1741188649740,-500.0,0.00039178,9]
[355465138,1741188649751,-1459.87,0.00039178,9]
[355465140,1741188649761,-500.0,0.00039178,9]
[355465142,1741188649772,-513.03596661,0.00039178,9]
[355465144,1741188649785,-1051.9,0.00039178,9]
[355465146,1741188649795,-500.0,0.00039178,9]
[355465148,1741188649806,-500.0,0.00039178,9]
[355465150,1741188649816,-500.0,0.00039178,9]
[355465152,1741188649826,-1423.73,0.00039178,9]
[355465154,1741188649837,-500.0,0.00039178,9]
[355465156,1741188649847,-500.0,0.00039178,9]
[355465158,1741188649858,-500.0,0.00039178,9]
[355465160,1741188649870,-529.82,0.00039178,9]
[355465182,1741188650064,-500.0,0.00039178,9]
[355465184,1741188650075,-500.0,0.00039178,9]
[355465186,1741188650084,-1119.2,0.00039178,9]
[355465188,1741188650094,-500.0,0.00039178,9]
[355465190,1741188650104,-500.0,0.00039178,9]
[355465192,1741188650113,-500.0,0.00039178,9]
[355465194,1741188650123,-725.51,0.00039178,9]
[355465196,1741188650132,-500.0,0.00039178,9]
[355465198,1741188650142,-500.0,0.00039178,9]
[355465200,1741188650152,-500.0,0.00039178,9]
[355465202,1741188650162,-500.0,0.00039178,9]
[355465204,1741188650173,-500.0,0.00039178,9]
[355465206,1741188650183,-500.0,0.00039178,9]
[355465208,1741188650192,-500.0,0.00039178,9]
[355465210,1741188650206,-500.0,0.00039178,9]
[355465212,1741188650216,-500.0,0.00039178,9]
[355465214,1741188650226,-1348.19,0.00039178,9]
[355465216,1741188650235,-1749.0,0.00039178,9]
[355465218,1741188650245,-500.0,0.00039178,9]
[355465220,1741188650254,-500.0,0.00039178,9]
[355465222,1741188650264,-805.7,0.00039178,9]
[355465224,1741188650274,-500.0,0.00039178,9]
[355465226,1741188650283,-500.0,0.00039178,9]
[355465228,1741188650293,-5204.15,0.00039178,9]
[355465230,1741188650303,-807.4,0.00039178,9]
[355465232,1741188650313,-500.0,0.00039178,9]
[355465234,1741188650323,-625.76,0.00039178,9]
[355465236,1741188650332,-500.0,0.00039178,9]
[355465238,1741188650342,-500.0,0.00039178,9]
[355465240,1741188650353,-5831.61,0.00039178,9]
[355465242,1741188650362,-500.0,0.00039178,9]
[355465244,1741188650373,-500.0,0.00039178,9]
[355465246,1741188650386,-500.0,0.00039178,9]
[355465248,1741188650396,-5129.4,0.00039178,9]
[355465250,1741188650405,-500.0,0.00039178,9]
[355465252,1741188650415,-500.0,0.00039178,9]
[355465254,1741188650426,-500.0,0.00039178,9]
[355465256,1741188650436,-500.0,0.00039178,9]
[355465258,1741188650448,-500.0,0.00039178,9]
[355465260,1741188650459,-200.0,0.000392,120]
[355465262,1741188650469,-168.0,0.00039267,14]
[355465263,1741188650480,-150.0,0.00039325,2]
[355465264,1741188650489,-6849.8537535,0.00039352,2]
[355465265,1741188650499,-151.0,0.00039452,14]
[355465266,1741188650509,-153.670451,0.00039452,14]
[355465267,1741188650518,-500.0,0.00039452,9]
[355465268,1741188650528,-500.0,0.00039452,9]
[355465269,1741188650538,-627.97868898,0.00039452,9]
[355465270,1741188650548,-500.0,0.00039452,9]
[355465271,1741188650557,-500.0,0.00039452,9]
[355465272,1741188650567,-500.0,0.00039452,9]
[355465273,1741188650576,-500.0,0.00039452,9]
[355465274,1741188650586,-500.0,0.00039452,9]
[355465275,1741188650596,-500.0,0.00039452,9]
[355465276,1741188650606,-500.0,0.00039452,9]
[355465277,1741188650616,-500.0,0.00039452,9]
[355465278,1741188650627,-500.0,0.00039452,9]
[355465279,1741188650637,-500.0,0.00039452,9]
[355465280,1741188650647,-500.0,0.00039452,9]
[355465281,1741188650657,-547.77,0.00039452,9]
[355465282,1741188650667,-500.0,0.00039452,9]
[355465283,1741188650677,-500.0,0.00039452,9]
[355465284,1741188650687,-500.0,0.00039452,9]
[355465285,1741188650699,-500.0,0.00039452,9]
[355465286,1741188650709,-500.0,0.00039452,9]
[355465287,1741188650718,-1064.16,0.00039452,9]
[355465288,1741188650728,-631.78,0.00039452,9]
[355465289,1741188650738,-500.0,0.00039452,9]
[355465290,1741188650748,-500.0,0.00039452,9]
[355465291,1741188650758,-500.0,0.00039452,9]
[355465292,1741188650767,-597.27,0.00039452,9]
[355465293,1741188650777,-801.38,0.00039452,9]
[355465294,1741188650787,-500.0,0.00039452,9]
[355465296,1741188650797,-500.0,0.00039452,9]
[355465297,1741188650806,-500.0,0.00039452,9]
[355465299,1741188650816,-500.0,0.00039452,9]
[355465301,1741188650825,-500.0,0.00039452,9]
[355465303,1741188650834,-500.0,0.00039452,9]
[355465305,1741188650844,-500.0,0.00039452,9]
[355465307,1741188650854,-565.36,0.00039452,9]
[355465309,1741188650864,-781.46,0.00039452,9]
[355465311,1741188650874,-805.9,0.00039452,9]
[355465313,1741188650884,-615.46,0.00039452,9]
[355465315,1741188650894,-500.0,0.00039452,9]
[355465317,1741188650903,-500.0,0.00039452,9]
[355465319,1741188650913,-500.0,0.00039452,9]
[355465321,1741188650923,-500.0,0.00039452,9]
[355465323,1741188650933,-500.0,0.00039452,9]
[355465325,1741188650943,-643.16,0.00039452,9]
[355465327,1741188650956,-500.0,0.00039452,9]
[355465329,1741188650967,-500.0,0.00039452,9]
[355465331,1741188650977,-500.0,0.00039452,9]
[355465333,1741188650987,-500.0,0.00039452,9]
[355465335,1741188650996,-500.0,0.00039452,9]
[355465337,1741188651005,-500.0,0.00039452,9]
[355465339,1741188651015,-297.55088593,0.00039452,9]
[355465341,1741188651024,-500.0,0.00039452,9]
[355465343,1741188651033,-500.0,0.00039452,9]
[355465345,1741188651043,-500.0,0.00039452,9]
[355465347,1741188651053,-716.98,0.00039452,9]
[355465349,1741188651062,-500.0,0.00039452,9]
[355465351,1741188651072,-500.0,0.00039452,9]
[355465353,1741188651082,-500.0,0.00039452,9]
[355465355,1741188651091,-500.0,0.00039452,9]
[355465357,1741188651101,-500.0,0.00039452,9]
[355465359,1741188651110,-500.0,0.00039452,9]
[355465361,1741188651120,-500.0,0.00039452,9]
[355465363,1741188651130,-882.9,0.00039452,9]
[355465365,1741188651139,-361.06067242,0.00039452,9]
[355465367,1741188651149,-500.0,0.00039452,9]
[355465369,1741188651159,-500.0,0.00039452,9]
[355465371,1741188651169,-500.0,0.00039452,9]
[355465373,1741188651181,-500.0,0.00039452,9]
[355465375,1741188651191,-1177.91,0.00039452,9]
[355465378,1741188651206,-500.0,0.00039452,9]
[355465380,1741188651217,-993.03,0.00039452,9]
[355465381,1741188651228,-500.0,0.00039452,9]
[355465383,1741188651240,-1013.84,0.00039452,9]
[355465385,1741188651250,-500.0,0.00039452,9]
[355465388,1741188651261,-500.0,0.00039452,9]
[355465390,1741188651270,-500.0,0.00039452,9]
[355465391,1741188651280,-1767.36,0.00039452,9]
[355465393,1741188651290,-500.0,0.00039452,9]
[355465395,1741188651299,-1134.27,0.00039452,9]
[355465397,1741188651309,-749.5,0.00039452,9]
[355465400,1741188651318,-500.0,0.00039452,9]
[355465402,1741188651329,-500.0,0.00039452,9]
[355465404,1741188651338,-500.0,0.00039452,9]
[355465406,1741188651348,-500.0,0.00039452,9]
[355465408,1741188651357,-567.26,0.00039452,9]
[355465410,1741188651367,-994.5,0.00039452,9]
[355465412,1741188651377,-500.0,0.00039452,9]
[355465413,1741188651391,-642.91,0.00039452,9]
[355465416,1741188651400,-536.96,0.00039452,9]
[355465418,1741188651410,-500.0,0.00039452,9]
[355465419,1741188651421,-500.0,0.00039452,9]
[355465422,1741188651431,-1655.07,0.00039452,9]
[355465423,1741188651440,-500.0,0.00039452,9]
[355465425,1741188651452,-3654.71,0.00039452,9]
[355465428,1741188651463,-500.0,0.00039452,9]
[355465429,1741188651472,-500.0,0.00039452,9]
[355465431,1741188651482,-500.0,0.00039452,9]
[355465433,1741188651491,-500.0,0.00039452,9]
[355465436,1741188651501,-500.0,0.00039452,9]
[355465437,1741188651510,-6894.45,0.00039452,9]
[355465440,1741188651520,-500.0,0.00039452,9]
[355465441,1741188651530,-500.0,0.00039452,9]
[355465444,1741188651541,-500.0,0.00039452,9]
[355465445,1741188651551,-340.86,0.00039452,9]
[355465447,1741188651560,-500.0,0.00039452,9]
[355465449,1741188651570,-2083.56,0.00039452,9]
[355465452,1741188651580,-500.0,0.00039452,9]
[355465454,1741188651590,-500.0,0.00039452,9]
[355465456,1741188651599,-500.0,0.00039452,9]
[355465458,1741188651609,-1768.91,0.00039452,9]
[355465460,1741188651619,-1279.65,0.00039452,9]
[355465462,1741188651628,-500.0,0.00039452,9]
[355465464,1741188651638,-8795.05,0.00039452,9]
[355465466,1741188651647,-509.61946675,0.00039452,9]
[355465468,1741188651657,-336.4752552,0.00039452,9]
[355465470,1741188651666,-723.17,0.00039452,9]
[355465472,1741188651676,-584.47,0.00039452,9]
[355465474,1741188651685,-314.60856421,0.00039452,9]
[355465476,1741188651695,-1477.19,0.00039452,9]
[355465478,1741188651706,-500.0,0.00039452,9]
[355465480,1741188651715,-746.19,0.00039452,9]
[355465482,1741188651724,-500.0,0.00039452,9]
[355465484,1741188651733,-596.63,0.00039452,9]
[355465486,1741188651743,-500.0,0.00039452,9]
[355465488,1741188651752,-1177.35,0.00039452,9]
[355465490,1741188651761,-770.33,0.00039452,9]
[355465492,1741188651771,-1488.21,0.00039452,9]
[355465494,1741188651780,-500.0,0.00039452,9]
[355465496,1741188651790,-500.0,0.00039452,9]
[355465498,1741188651800,-500.0,0.00039452,9]
[355465500,1741188651809,-500.0,0.00039452,9]
[355465502,1741188651819,-500.0,0.00039452,9]
[355465504,1741188651828,-500.0,0.00039452,9]
[355465506,1741188651837,-500.0,0.00039452,9]
[355465508,1741188651846,-100454.23,0.00039452,7]
[355465510,1741188651856,-665.32,0.00039452,9]
[355465512,1741188651865,-154.94053786,0.00039452,9]
[355465514,1741188651875,-616.53,0.00039452,9]
[355465516,1741188651884,-500.0,0.00039452,9]
[355465518,1741188651894,-468.89391572,0.00039452,9]
[355465520,1741188651903,-500.0,0.00039452,9]
[355465522,1741188651912,-354.26304312,0.00039452,9]
[355465523,1741188651922,-675.77,0.00039452,9]
[355465525,1741188651931,-1004.06,0.00039452,9]
[355465528,1741188651941,-4335.7,0.00039452,9]
[355465530,1741188651954,-500.0,0.00039452,9]
[355465532,1741188651963,-500.0,0.00039452,9]
[355465534,1741188651973,-500.0,0.00039452,9]
[355465535,1741188651983,-500.0,0.00039452,9]
[355465538,1741188651993,-500.0,0.00039452,9]
[355465540,1741188652003,-500.0,0.00039452,9]
[355465542,1741188652012,-500.0,0.00039452,9]
[355465544,1741188652022,-867.01,0.00039452,9]
[355465546,1741188652032,-500.0,0.00039452,9]
[355465548,1741188652041,-500.0,0.00039452,9]
[355465550,1741188652052,-808.48,0.00039452,9]
[355465551,1741188652062,-590.96,0.00039452,9]
[355465553,1741188652072,-500.0,0.00039452,9]
[355465555,1741188652082,-4920.31,0.00039452,9]
[355465557,1741188652091,-500.0,0.00039452,9]
[355465559,1741188652100,-500.0,0.00039452,9]
[355465561,1741188652110,-500.0,0.00039452,9]
[355465563,1741188652119,-500.0,0.00039452,9]
[355465565,1741188652128,-4494.19,0.00039452,9]
[355465567,1741188652138,-500.0,0.00039452,9]
[355465569,1741188652148,-1937.85,0.00039452,9]
[355465571,1741188652157,-1192.8,0.00039452,9]
[355465573,1741188652168,-503.75,0.00039452,9]
[355465575,1741188652177,-500.0,0.00039452,9]
[355465577,1741188652186,-668.28,0.00039452,9]
[355465579,1741188652196,-500.0,0.00039452,9]
[355465581,1741188652207,-6571.77,0.00039452,9]
[355465584,1741188652217,-500.0,0.00039452,9]
[355465585,1741188652226,-1308.15,0.00039452,9]
[355465587,1741188652236,-786.47,0.00039452,9]
[355465590,1741188652245,-15574.4,0.00039452,9]
[355465592,1741188652255,-500.0,0.00039452,9]
[355465593,1741188652264,-500.0,0.00039452,9]
[355465595,1741188652274,-1459.87,0.00039452,9]
[355465598,1741188652284,-500.0,0.00039452,9]
[355465599,1741188652293,-1051.9,0.00039452,9]
[355465602,1741188652303,-500.0,0.00039452,9]
[355465604,1741188652312,-500.0,0.00039452,9]
[355465606,1741188652322,-500.0,0.00039452,9]
[355465607,1741188652331,-500.0,0.00039452,9]
[355465609,1741188652340,-1423.73,0.00039452,9]
[355465611,1741188652349,-500.0,0.00039452,9]
[355465613,1741188652358,-500.0,0.00039452,9]
[355465615,1741188652368,-529.82,0.00039452,9]
[355465617,1741188652382,-500.0,0.00039452,9]
[355465619,1741188652392,-500.0,0.00039452,9]
[355465622,1741188652402,-1119.2,0.00039452,9]
[355465624,1741188652411,-500.0,0.00039452,9]
[355465629,1741188652462,-500.0,0.00039452,9]
[355465632,1741188652472,-500.0,0.00039452,9]
[355465634,1741188652482,-725.51,0.00039452,9]
[355465635,1741188652491,-500.0,0.00039452,9]
[355465637,1741188652500,-500.0,0.00039452,9]
[355465640,1741188652510,-500.0,0.00039452,9]
[355465641,1741188652519,-500.0,0.00039452,9]
[355465643,1741188652528,-500.0,0.00039452,9]
[355465645,1741188652538,-500.0,0.00039452,9]
[355465647,1741188652547,-500.0,0.00039452,9]
[355465649,1741188652556,-500.0,0.00039452,9]
[355465651,1741188652565,-500.0,0.00039452,9]
[355465653,1741188652574,-1348.19,0.00039452,9]
[355465655,1741188652583,-1749.0,0.00039452,9]
[355465657,1741188652593,-500.0,0.00039452,9]
[355465659,1741188652603,-500.0,0.00039452,9]
[355465661,1741188652612,-805.7,0.00039452,9]
[355465663,1741188652622,-398.25469694,0.00039452,9]
[355465665,1741188652632,-500.0,0.00039452,9]
[355465667,1741188652642,-5204.15,0.00039452,9]
[355465669,1741188652652,-807.4,0.00039452,9]
[355465671,1741188652662,-500.0,0.00039452,9]
[355465673,1741188652672,-625.76,0.00039452,9]
[355465675,1741188652682,-500.0,0.00039452,9]
[355465677,1741188652692,-500.0,0.00039452,9]
[355465679,1741188652707,-5831.61,0.00039452,9]
[355465681,1741188652717,-500.0,0.00039452,9]
[355465683,1741188652726,-500.0,0.00039452,9]
[355465685,1741188652735,-500.0,0.00039452,9]
[355465687,1741188652745,-5129.4,0.00039452,9]
[355465689,1741188652759,-500.0,0.00039452,9]
[355465691,1741188652769,-500.0,0.00039452,9]
[355465693,1741188652779,-500.0,0.00039452,9]
[355465695,1741188652789,-500.0,0.00039452,9]
[355465697,1741188652799,-500.0,0.00039452,9]
[355465699,1741188652809,-5026.339,0.000397,120]
[355465701,1741188652818,-184.44250669,0.000397,15]
[355465703,1741188652827,-1000.0,0.0003972,30]
[355465705,1741188652838,-256.96972985,0.00039726,5]
[355465707,1741188652847,-432.41444923,0.00039726,5]
[355465709,1741188652857,-500.0,0.00039726,9]
[355465711,1741188652867,-500.0,0.00039726,9]
[355465713,1741188652877,-500.0,0.00039726,9]
[355465715,1741188652887,-500.0,0.00039726,9]
[355465717,1741188652897,-500.0,0.00039726,9]
[355465719,1741188652907,-500.0,0.00039726,9]
[355465721,1741188652916,-500.0,0.00039726,9]
[355465723,1741188652926,-500.0,0.00039726,9]
[355465725,1741188652935,-500.0,0.00039726,9]
[355465727,1741188652945,-500.0,0.00039726,9]
[355465729,1741188652957,-410.21877248,0.00039726,9]
[355465731,1741188652967,-500.0,0.00039726,9]
[355465733,1741188652976,-500.0,0.00039726,9]
[355465735,1741188652986,-547.77,0.00039726,9]
[355465737,1741188652995,-500.0,0.00039726,9]
[355465739,1741188653006,-500.0,0.00039726,9]
[355465741,1741188653015,-500.0,0.00039726,9]
[355465743,1741188653025,-500.0,0.00039726,9]
[355465745,1741188653034,-500.0,0.00039726,9]
[355465747,1741188653043,-1064.16,0.00039726,9]
[355465749,1741188653052,-631.78,0.00039726,9]
[355465751,1741188653062,-500.0,0.00039726,9]
[355465753,1741188653071,-500.0,0.00039726,9]
[355465755,1741188653083,-500.0,0.00039726,9]
[355465757,1741188653093,-597.27,0.00039726,9]
[355465759,1741188653103,-801.38,0.00039726,9]
[355465761,1741188653112,-500.0,0.00039726,9]
[355465763,1741188653122,-500.0,0.00039726,9]
[355465765,1741188653131,-434.45715789,0.00039726,9]
[355465775,1741188653293,-65.54284211,0.00039726,9]
[355465777,1741188653302,-500.0,0.00039726,9]
[355465779,1741188653312,-500.0,0.00039726,9]
[355465781,1741188653322,-500.0,0.00039726,9]
[355465783,1741188653331,-500.0,0.00039726,9]
[355465785,1741188653340,-565.36,0.00039726,9]
[355465787,1741188653350,-781.46,0.00039726,9]
[355465789,1741188653359,-805.9,0.00039726,9]
[355465791,1741188653369,-615.46,0.00039726,9]
[355465793,1741188653379,-296.05231022,0.00039726,9]
[355465795,1741188653391,-500.0,0.00039726,9]
[355465798,1741188653402,-500.0,0.00039726,9]
[355465799,1741188653411,-500.0,0.00039726,9]
[355465801,1741188653422,-500.0,0.00039726,9]
[355465803,1741188653432,-643.16,0.00039726,9]
[355465806,1741188653443,-500.0,0.00039726,9]
[355465808,1741188653453,-500.0,0.00039726,9]
[355465810,1741188653465,-500.0,0.00039726,9]
[355465812,1741188653474,-500.0,0.00039726,9]
[355465814,1741188653483,-500.0,0.00039726,9]
[355465816,1741188653492,-569.92113978,0.00039726,9]
[355465818,1741188653501,-500.0,0.00039726,9]
[355465820,1741188653512,-500.0,0.00039726,9]
[355465822,1741188653521,-500.0,0.00039726,9]
[355465824,1741188653530,-716.98,0.00039726,9]
[355465826,1741188653539,-500.0,0.00039726,9]
[355465828,1741188653549,-500.0,0.00039726,9]
[355465830,1741188653558,-487.94181816,0.00039726,9]
[355465832,1741188653568,-500.0,0.00039726,9]
[355465834,1741188653577,-500.0,0.00039726,9]
[355465836,1741188653586,-500.0,0.00039726,9]
[355465838,1741188653595,-383.05878262,0.00039726,9]
[355465840,1741188653604,-882.9,0.00039726,9]
[355465842,1741188653614,-500.0,0.00039726,9]
[355465844,1741188653623,-500.0,0.00039726,9]
[355465846,1741188653632,-563.85988294,0.00039726,9]
[355465848,1741188653642,-500.0,0.00039726,9]
[355465850,1741188653652,-1177.91,0.00039726,9]
[355465852,1741188653661,-500.0,0.00039726,9]
[355465854,1741188653670,-993.03,0.00039726,9]
[355465856,1741188653680,-500.0,0.00039726,9]
[355465857,1741188653689,-1013.84,0.00039726,9]
[355465860,1741188653699,-500.0,0.00039726,9]
[355465861,1741188653711,-500.0,0.00039726,9]
[355465864,1741188653722,-500.0,0.00039726,9]
[355465866,1741188653731,-1767.36,0.00039726,9]
[355465868,1741188653741,-500.0,0.00039726,9]
[355465870,1741188653751,-1134.27,0.00039726,9]
[355465872,1741188653760,-749.5,0.00039726,9]
[355465874,1741188653771,-500.0,0.00039726,9]
[355465876,1741188653782,-500.0,0.00039726,9]
[355465878,1741188653792,-500.0,0.00039726,9]
[355465880,1741188653801,-216.30565463,0.00039726,9]
[355465882,1741188653811,-567.26,0.00039726,9]
[355465884,1741188653820,-994.5,0.00039726,9]
[355465886,1741188653829,-500.0,0.00039726,9]
[355465888,1741188653839,-642.91,0.00039726,9]
[355465890,1741188653848,-536.96,0.00039726,9]
[355465892,1741188653858,-500.0,0.00039726,9]
[355465894,1741188653868,-500.0,0.00039726,9]
[355465896,1741188653878,-1655.07,0.00039726,9]
[355465898,1741188653888,-500.0,0.00039726,9]
[355465900,1741188653897,-3654.71,0.00039726,9]
[355465902,1741188653907,-273.17466828,0.00039726,9]
[355465904,1741188653916,-500.0,0.00039726,9]
[355465906,1741188653926,-500.0,0.00039726,9]
[355465908,1741188653936,-500.0,0.00039726,9]
[355465910,1741188653946,-326.57707764,0.00039726,9]
[355465912,1741188653959,-6894.45,0.00039726,9]
[355465914,1741188653968,-500.0,0.00039726,9]
[355465916,1741188653978,-500.0,0.00039726,9]
[355465918,1741188653989,-500.0,0.00039726,9]
[355465920,1741188653999,-500.0,0.00039726,9]
[355465922,1741188654010,-2083.56,0.00039726,9]
[355465924,1741188654021,-500.0,0.00039726,9]
[355465926,1741188654031,-500.0,0.00039726,9]
[355465928,1741188654042,-500.0,0.00039726,9]
[355465930,1741188654052,-1768.91,0.00039726,9]
[355465932,1741188654062,-1279.65,0.00039726,9]
[355465934,1741188654072,-500.0,0.00039726,9]
[355465936,1741188654082,-8795.05,0.00039726,9]
[355465938,1741188654092,-723.17,0.00039726,9]
[355465940,1741188654102,-584.47,0.00039726,9]
[355465942,1741188654112,-1477.19,0.00039726,9]
[355465944,1741188654123,-500.0,0.00039726,9]
[355465946,1741188654132,-124.17992834,0.00039726,9]
[355465948,1741188654146,-622.01007166,0.00039726,9]
[355465950,1741188654156,-500.0,0.00039726,9]
[355465952,1741188654166,-596.63,0.00039726,9]
[355465953,1741188654175,-500.0,0.00039726,9]
[355465955,1741188654185,-1177.35,0.00039726,9]
[355465957,1741188654195,-1488.21,0.00039726,9]
[355465959,1741188654210,-770.33,0.00039726,9]
[355465961,1741188654220,-500.0,0.00039726,9]
[355465963,1741188654230,-500.0,0.00039726,9]
[355465965,1741188654240,-500.0,0.00039726,9]
[355465967,1741188654250,-500.0,0.00039726,9]
[355465968,1741188654259,-500.0,0.00039726,9]
[355465970,1741188654269,-500.0,0.00039726,9]
[355465972,1741188654279,-500.0,0.00039726,9]
[355465974,1741188654288,-29.86992834,0.00039726,7]
[355465976,1741188654300,-913.68013903,0.00039726,7]
[355465978,1741188654313,-2235.1224627,0.00039726,7]
[355465980,1741188654325,-8397.3492654,0.00039726,7]
[355465982,1741188654338,-542.17232062,0.00039726,7]
[355465984,1741188654354,-356.56123939,0.00039726,7]
[355466000,1741188654545,-278.74942108,0.00038356,9]
[355466002,1741188654555,-500.0,0.00038356,9]
[355466004,1741188654565,-105.70006495,0.0003863,9]
[355466006,1741188654581,-394.29993505,0.0003863,9]
[355466008,1741188654590,-39833.96139882,0.00039726,7]
[355466010,1741188654602,-48145.5132457,0.00039726,7]
[355466012,1741188654612,-665.32,0.00039726,9]
[355466014,1741188654621,-616.53,0.00039726,9]
[355466016,1741188654630,-500.0,0.00039726,9]
[355466018,1741188654639,-500.0,0.00039726,9]
[355466019,1741188654649,-675.77,0.00039726,9]
[355466021,1741188654659,-1004.06,0.00039726,9]
[355466023,1741188654669,-4335.7,0.00039726,9]
[355466025,1741188654678,-500.0,0.00039726,9]
[355466027,1741188654688,-500.0,0.00039726,9]
[355466029,1741188654698,-500.0,0.00039726,9]
[355466031,1741188654710,-500.0,0.00039726,9]
[355466032,1741188654720,-500.0,0.00039726,9]
[355466034,1741188654730,-500.0,0.00039726,9]
[355466036,1741188654739,-500.0,0.00039726,9]
[355466037,1741188654749,-867.01,0.00039726,9]
[355466039,1741188654759,-500.0,0.00039726,9]
[355466040,1741188654769,-500.0,0.00039726,9]
[355466042,1741188654778,-808.48,0.00039726,9]
[355466044,1741188654788,-590.96,0.00039726,9]
[355466046,1741188654798,-500.0,0.00039726,9]